bitfinex-derivatives/quotes_SOLF0:USTF0_20251209
["timestamp","ask_amount","ask_price","bid_price","bid_amount"]
[1765250372272,3.39954304,132.68,132.66,0.05707625]
[1765250372466,0.04954304,132.68,132.66,0.05707625]
[1765250372668,3.39954304,132.68,132.66,0.05707625]
[1765250373171,3.39954304,132.68,132.66,6.84057625]
[1765250373379,0.04954304,132.68,132.66,10.33594735]
[1765250374777,0.04954304,132.68,132.66,6.84057625]
[1765250374977,0.04954304,132.68,132.66,10.33594735]
[1765250375884,3.39954304,132.68,132.66,10.33594735]
[1765250376376,3.39954304,132.68,132.66,0.05707625]
[1765250380895,3.39954304,132.68,132.62,10.2807711]
[1765250381490,3.39954304,132.68,132.62,6.7854]
[1765250381690,3.39954304,132.68,132.62,10.2807711]
[1765250382490,3.39954304,132.68,132.59,3.4953711]
[1765250382491,3.35,132.66,132.59,3.4953711]
[1765250382690,3.35,132.63,132.57,3.4953711]
[1765250382890,3.35,132.6,132.57,3.4953711]
[1765250383091,3.35,132.6,132.56,122.4953711]
[1765250383598,3.35,132.6,132.57,6.788]
[1765250384300,0.05296789,132.61,132.58,67.5753711]
[1765250384798,3.40296789,132.61,132.59,6.7871]
[1765250385491,0.05296789,132.61,132.59,6.7871]
[1765250385694,0.05296789,132.61,132.6,3.4953711]
[1765250385997,3.35,132.66,132.61,6.7862]
[1765250386998,3.35,132.64,132.62,0.05019547]
[1765250387494,3.40110573,132.65,132.62,0.05019547]
[1765250395702,3.40110573,132.65,132.62,0.00019547]
[1765250395902,3.31,132.63,132.57,70.8879]
[1765250396099,3.31,132.63,132.55,3.4953711]
[1765250396300,3.31,132.63,132.56,64.1]
[1765250396496,3.31,132.63,132.56,70.8886]
[1765250396891,3.31,132.6,132.56,70.8886]
[1765250398203,3.31,132.6,132.53,106.93778939]
[1765250398204,3.31,132.6,132.54,10.2848711]
[1765250398395,3.35788724,132.58,132.54,64.1]
[1765250398801,3.35788724,132.58,132.54,67.5953711]
[1765250399309,0.04788724,132.58,132.54,67.5953711]
[1765250400512,0.04788724,132.58,132.56,10.2839711]
[1765250402504,0.04788724,132.58,132.56,6.7886]
[1765250402701,0.04788724,132.58,132.56,10.2839711]
[1765250404215,3.31,132.57,132.56,10.2839711]
[1765250404517,3.35788724,132.58,132.56,10.2839711]
[1765250404706,0.04788724,132.58,132.56,10.2839711]
[1765250406008,0.04788724,132.58,132.57,64.12]
[1765250406416,3.31,132.63,132.58,6.7873]
[1765250406718,3.31,132.63,132.58,10.2826711]
[1765250407422,0.04976082,132.62,132.59,6.8356473]
[1765250407611,0.04976082,132.62,132.6,64.12]
[1765250408418,3.35976082,132.62,132.6,64.12]
[1765250408608,0.04976082,132.62,132.6,64.12]
[1765250408808,0.04976082,132.62,132.61,2.24055049]
[1765250409511,0.04976082,132.62,132.6,64.12]
[1765250409512,0.04976082,132.62,132.6,73.14705049]
[1765250409712,3.35976082,132.62,132.6,73.14705049]
[1765250410112,3.35976082,132.62,132.6,66.36055049]
[1765250410515,3.35976082,132.62,132.59,66.40919779]
[1765250410718,3.35976082,132.62,132.59,64.1686473]
[1765250410919,3.35976082,132.62,132.59,0.0486473]
[1765250412718,3.35976082,132.62,132.59,2.28919779]
[1765250413311,3.35976082,132.62,132.59,0.0486473]
[1765250413515,3.2,132.6,132.59,0.0486473]
[1765250415319,3.2,132.6,132.55,2.24055049]
[1765250415617,3.2,132.56,132.51,2.24055049]
[1765250416418,3.2,132.54,132.51,2.24055049]
[1765250420028,0.05313808,132.55,132.51,6.7912]
[1765250420223,0.05313808,132.55,132.53,2.24055049]
[1765250421029,69.58568556,132.62,132.54,64.12]
[1765250421030,64.12,132.62,132.54,64.12]
[1765250421326,64.12,132.62,132.56,2.24055049]
[1765250421327,3.26,132.61,132.56,2.24055049]
[1765250422224,3.26,132.59,132.57,0.05455214]
[1765250424628,3.26,132.59,132.54,2.24055049]
[1765250425226,3.26,132.59,132.53,2.24055049]
[1765250425623,0.05415782,132.57,132.53,2.24055049]
[1765250425829,3.26,132.56,132.53,2.24055049]
[1765250426031,3.31415782,132.57,132.55,2.24055049]
[1765250427735,3.31415782,132.57,132.53,6.79]
[1765250427943,3.31415782,132.57,132.53,9.03055049]
[1765250428937,3.31415782,132.57,132.53,6.79]
[1765250429138,3.31415782,132.57,132.54,2.24055049]
[1765250429924,0.05415782,132.57,132.56,2.24055049]
[1765250433740,0.05415782,132.57,132.56,66.38055049]
[1765250434433,3.31415782,132.57,132.53,70.9301]
[1765250434637,0.05415782,132.57,132.53,70.9301]
[1765250434839,0.05415782,132.57,132.54,2.24055049]
[1765250435038,0.05415782,132.57,132.54,9.02995049]
[1765250435335,0.05415782,132.57,132.56,2.24055049]
[1765250435742,3.31415782,132.57,132.54,128.02995049]
[1765250436044,3.31415782,132.57,132.54,121.24055049]
[1765250436244,3.31415782,132.57,132.54,185.38055049]
[1765250436741,0.05415782,132.57,132.54,185.38055049]
[1765250436935,3.31415782,132.57,132.54,183.14]
[1765250437442,3.31415782,132.57,132.54,64.14]
[1765250438935,3.31415782,132.57,132.53,2.24055049]
[1765250439342,3.31415782,132.57,132.53,66.38055049]
[1765250439941,3.31415782,132.57,132.51,6.7911]
[1765250440142,3.26,132.52,132.42,107.95325049]
[1765250440349,3.31167528,132.48,132.42,2.24055049]
[1765250440543,3.31167528,132.48,132.44,2.24055049]
[1765250440747,3.31167528,132.48,132.46,2.24055049]
[1765250441238,3.31167528,132.48,132.42,64.14]
[1765250441436,3.31167528,132.48,132.43,2.24055049]
[1765250441642,3.26,132.47,132.42,2.24055049]
[1765250441938,3.31167528,132.48,132.44,2.24055049]
[1765250442547,3.31167528,132.48,132.43,64.14]
[1765250443140,3.31167528,132.48,132.43,70.9352]
[1765250445651,3.31167528,132.48,132.43,6.7952]
[1765250445846,3.31167528,132.48,132.43,70.9352]
[1765250446049,3.31167528,132.48,132.43,6.7952]
[1765250446240,3.31167528,132.48,132.43,70.9352]
[1765250447043,3.31167528,132.48,132.44,6.7947]
[1765250450349,3.31167528,132.48,132.45,6.7941]
[1765250450551,0.05167528,132.48,132.45,6.7941]
[1765250450753,0.05167528,132.48,132.44,111.04458274]
[1765250450950,0.05167528,132.48,132.46,6.7936]
[1765250451152,0.05167528,132.48,132.47,64.16]
[1765250454358,3.19,132.54,132.48,6.7925]
[1765250454753,3.19,132.54,132.47,69.50758274]
[1765250454953,3.19,132.54,132.48,64.16]
[1765250455149,3.19,132.54,132.5,0.0514763]
[1765250455356,3.19,132.51,132.5,0.0514763]
[1765250455748,4.69,132.51,132.41,125.66133562]
[1765250455957,3.19,132.5,132.46,64.16]
[1765250456657,3.19,132.5,132.43,6.7951]
[1765250456957,3.23942646,132.49,132.43,125.7951]
[1765250457160,3.19,132.48,132.42,64.16]
[1765250457359,0.04985842,132.46,132.42,64.16]
[1765250457550,3.23985842,132.46,132.42,64.16]
[1765250458450,3.23985842,132.46,132.42,70.9557]
[1765250461758,3.23985842,132.46,132.42,64.16]
[1765250462962,3.23985842,132.46,132.4,6.7967]
[1765250463162,3.23985842,132.46,132.41,64.18]
[1765250463864,0.04985842,132.46,132.41,64.18]
[1765250464264,3.23985842,132.46,132.41,64.18]
[1765250464464,0.04985842,132.46,132.41,64.18]
[1765250464763,0.04985842,132.46,132.44,2.2460146]
[1765250464969,3.23985842,132.46,132.44,2.2460146]
[1765250465272,3.23985842,132.46,132.41,64.18]
[1765250465461,3.23985842,132.46,132.43,2.2460146]
[1765250469166,3.23985842,132.46,132.42,64.18]
[1765250469367,3.23985842,132.46,132.43,2.2460146]
[1765250470657,3.23985842,132.46,132.42,70.9758]
[1765250470855,0.04985842,132.46,132.45,3.50993802]
[1765250471254,3.37,132.51,132.46,6.7935]
[1765250471458,3.37,132.51,132.46,70.9735]
[1765250471666,5.86486525,132.54,132.49,6.7924]
[1765250471972,3.37,132.53,132.49,10.30233802]
[1765250472269,3.41774662,132.52,132.5,0.0509209]
[1765250477172,3.37,132.51,132.41,109.23033802]
[1765250477369,3.37,132.49,132.43,3.50993802]
[1765250477561,3.37,132.49,132.44,6.7947]
[1765250477761,3.37,132.49,132.43,109.21423802]
[1765250477966,0.05520417,132.47,132.43,109.21423802]
[1765250478962,3.19520417,132.47,132.4,105.7287]
[1765250479171,3.19520417,132.47,132.41,169.9006]
[1765250479363,3.19520417,132.47,132.41,64.18]
[1765250479758,3.19520417,132.47,132.42,64.18]
[1765250480366,3.19520417,132.47,132.42,67.68993802]
[1765250480970,3.19520417,132.47,132.42,74.48553802]
[1765250481169,3.19520417,132.47,132.42,70.9756]
[1765250481372,0.05520417,132.47,132.43,3.50993802]
[1765250482160,0.05520417,132.47,132.45,3.50993802]
[1765250482371,0.05520417,132.47,132.46,64.18]
[1765250483463,3.14,132.51,132.46,64.18]
[1765250483664,3.14,132.51,132.47,3.50993802]
[1765250484576,0.05134203,132.5,132.48,0.05459269]
[1765250484777,0.05570423,132.5,132.48,0.05459269]
[1765250487381,3.19570423,132.5,132.48,0.05459269]
[1765250487577,0.05570423,132.5,132.48,64.23459269]
[1765250491775,3.14,132.56,132.51,105.6433]
[1765250491981,3.14,132.56,132.52,64.18]
[1765250492679,3.14,132.56,132.52,70.9706]
[1765250492980,0.04913963,132.55,132.53,0.04812926]
[1765250495878,3.18913963,132.55,132.53,0.04812926]
[1765250504794,3.18913963,132.55,132.5,6.7915]
[1765250505791,3.18913963,132.55,132.51,0.05364506]
[1765250506698,3.18913963,132.55,132.51,6.84474506]
[1765250508594,3.18913963,132.55,132.51,74.51034393]
[1765250508794,3.18913963,132.55,132.52,6.7906]
[1765250509296,3.18913963,132.55,132.51,64.21364506]
[1765250509887,0.04913963,132.55,132.52,105.6294]
[1765250510095,0.04913963,132.55,132.54,3.50559887]
[1765250510491,3.17,132.6,132.54,3.50559887]
[1765250510698,3.17,132.6,132.55,64.16]
[1765250511402,3.22022357,132.59,132.56,0.05532816]
[1765250514896,3.17,132.57,132.5,105.6504]
[1765250515097,3.17,132.59,132.52,109.14059887]
[1765250515288,3.17,132.59,132.53,105.6253]
[1765250515897,0.05402771,132.57,132.55,0.0482831]
[1765250516102,0.05402771,132.57,132.55,64.1882831]
[1765250516603,0.05402771,132.57,132.55,70.9772831]
[1765250516802,3.22402771,132.57,132.55,64.1882831]
[1765250518990,3.22402771,132.57,132.55,0.0482831]
[1765250526917,0.05402771,132.57,132.55,0.0482831]
[1765250528422,3.42402771,132.57,132.55,0.0482831]
[1765250530015,0.05402771,132.57,132.55,0.0482831]
[1765250530412,3.42402771,132.57,132.55,0.0482831]
[1765250536925,3.37,132.56,132.51,66.38271045]
[1765250537126,0.05402771,132.57,132.55,2.24271045]
[1765250537424,0.05402771,132.57,132.55,64.14]
[1765250537620,0.05402771,132.57,132.56,2.24271045]
[1765250538216,3.42402771,132.57,132.55,0.02327502]
[1765250542925,0.05402771,132.57,132.55,0.02327502]
[1765250543329,0.05402771,132.57,132.55,6.81227502]
[1765250547330,3.22,132.62,132.55,105.63087502]
[1765250547531,3.22,132.62,132.56,5.34039889]
[1765250548325,0.05731171,132.6,132.58,0.05470975]
[1765250548528,0.05731171,132.6,132.59,64.14]
[1765250548835,3.27731171,132.6,132.58,64.19470975]
[1765250551433,3.27731171,132.6,132.58,0.05470975]
[1765250556946,3.27731171,132.6,132.53,6.7901]
[1765250557151,3.27731171,132.6,132.53,71.1001]
[1765250557152,3.22,132.58,132.53,71.1001]
[1765250558050,3.22,132.56,132.54,0.02259298]
[1765250562749,3.22,132.56,132.54,0.21259298]
[1765250564851,3.22,132.56,132.54,0.02259298]
[1765250566846,3.26942924,132.57,132.55,2.43294602]
[1765250568051,0.04942924,132.57,132.56,0.19]
[1765250573557,3.26942924,132.57,132.54,2.455539]
[1765250574156,3.26942924,132.57,132.54,66.595539]
[1765250578057,3.26942924,132.57,132.54,0.02259298]
[1765250579870,3.26942924,132.57,132.55,0.19]
[1765250580169,3.26942924,132.57,132.54,7.00229298]
[1765250580757,0.04942924,132.57,132.56,0.19]
[1765250580956,0.04942924,132.57,132.55,73.36204602]
[1765250581475,0.04942924,132.57,132.56,0.19]
[1765250587068,3.33942924,132.57,132.55,73.36204602]
[1765250587570,0.04942924,132.57,132.56,0.19]
[1765250588254,0.04942924,132.57,132.56,119.19]
[1765250589464,3.33942924,132.57,132.56,64.14]
[1765250593776,3.33942924,132.57,132.54,0.21259298]
[1765250594072,3.33942924,132.57,132.55,64.14]
[1765250595177,3.33942924,132.57,132.55,64.33]
[1765250596876,3.33942924,132.57,132.55,0.19]
[1765250603687,0.04942924,132.57,132.55,3.69401351]
[1765250603985,0.04942924,132.57,132.56,0.19]
[1765250605395,3.41942924,132.57,132.55,3.69401351]
[1765250605595,3.41942924,132.57,132.55,10.48291351]
[1765250605789,3.41942924,132.57,132.56,64.14]
[1765250606491,0.04942924,132.57,132.56,64.33]
[1765250612107,3.41942924,132.57,132.56,64.14]
[1765250614403,3.41942924,132.57,132.54,0.21259298]
[1765250614604,3.41942924,132.57,132.55,64.14]
[1765250614806,3.41942924,132.57,132.55,64.33]
[1765250615196,3.41942924,132.57,132.54,0.02259298]
[1765250615402,3.41942924,132.57,132.54,64.35259298]
[1765250617907,3.41942924,132.57,132.55,0.19]
[1765250618103,0.04942924,132.57,132.55,0.19]
[1765250619303,3.37,132.56,132.54,64.35259298]
[1765250620195,0.04942924,132.57,132.55,0.19]
[1765250620395,3.41942924,132.57,132.55,0.19]
[1765250620606,3.41942924,132.57,132.54,64.35259298]
[1765250621503,3.41942924,132.57,132.54,0.21259298]
[1765250621712,3.41942924,132.57,132.54,64.35259298]
[1765250623411,3.41942924,132.57,132.55,0.19]
[1765250624912,3.41942924,132.57,132.54,71.14229298]
[1765250625906,3.41942924,132.57,132.54,0.02259298]
[1765250626110,3.37,132.55,132.54,0.02259298]
[1765250631013,3.43942924,132.57,132.54,0.21259298]
[1765250631415,3.43942924,132.57,132.55,0.19]
[1765250631612,0.04942924,132.57,132.56,0.19]
[1765250637414,0.04942924,132.57,132.56,3.69401351]
[1765250639520,3.39,132.62,132.58,0.19]
[1765250639821,3.39,132.62,132.59,0.19]
[1765250640309,3.39,132.62,132.59,0.24230061]
[1765250640516,3.44308785,132.62,132.59,0.24230061]
[1765250641518,3.44308785,132.62,132.59,0.05230061]
[1765250642419,3.44308785,132.62,132.6,3.69401351]
[1765250642619,0.05308785,132.62,132.6,3.69401351]
[1765250642821,0.05308785,132.62,132.61,0.19]
[1765250643023,3.29,132.69,132.64,0.19]
[1765250643217,5.64416691,132.68,132.66,0.19]
[1765250643521,3.29,132.69,132.66,0.19]
[1765250644118,3.33830736,132.69,132.66,0.24285867]
[1765250644323,3.33830736,132.69,132.67,10.47681351]
[1765250644627,0.04830736,132.69,132.68,0.19]
[1765250645514,0.04830736,132.69,132.67,10.47681351]
[1765250647526,0.04830736,132.69,132.68,64.12]
[1765250650127,3.33830736,132.69,132.68,64.12]
[1765250651320,3.33830736,132.69,132.66,0.05285867]
[1765250658731,3.14,132.68,132.66,0.05285867]
[1765250665236,169.5806,132.72,132.66,0.05285867]
[1765250665237,10.12205073,132.77,132.68,0.15]
[1765250665433,8.78745829,132.78,132.75,0.15]
[1765250665633,3.14,132.78,132.77,2.23932377]
[1765250666132,3.14,132.78,132.75,0.15]
[1765250666438,3.14,132.78,132.76,2.23932377]
[1765250666640,3.19545498,132.79,132.77,2.23932377]
[1765250667033,3.14,132.79,132.77,2.23932377]
[1765250667238,3.19163898,132.79,132.77,2.29134507]
[1765250667636,0.05163898,132.79,132.78,0.15]
[1765250667828,3.14,132.84,132.79,0.15]
[1765250668027,3.14,132.84,132.81,0.15]
[1765250668240,3.14,132.84,132.82,2.23932377]
[1765250668940,3.19408895,132.84,132.82,2.28913877]
[1765250669336,3.19408895,132.84,132.82,0.049815]
[1765250669539,3.19408895,132.84,132.82,2.28913877]
[1765250670049,0.05408895,132.84,132.82,2.43913877]
[1765250670539,3.19408895,132.84,132.82,2.43913877]
[1765250670727,3.19408895,132.84,132.82,2.28913877]
[1765250671335,0.05408895,132.84,132.83,0.15]
[1765250671943,3.14,132.88,132.83,0.15]
[1765250672136,3.14,132.88,132.85,2.23932377]
[1765250672942,3.1894119,132.88,132.85,2.29049046]
[1765250673845,3.1894119,132.88,132.85,0.05116669]
[1765250675539,3.14,132.87,132.85,0.00116669]
[1765250676045,5.37932377,132.86,132.85,0.00116669]
[1765250677242,3.14,132.85,132.79,2.23932377]
[1765250677441,3.14,132.83,132.79,2.23932377]
[1765250678245,3.14,132.81,132.8,0.0500343]
[1765250679050,3.14,132.81,132.75,6.7789]
[1765250679245,6.7753,132.83,132.75,6.7789]
[1765250679246,3.14,132.8,132.75,6.7789]
[1765250679542,3.14,132.8,132.77,0.25]
[1765250680254,3.19491104,132.8,132.77,0.05177389]
[1765250680549,3.14,132.79,132.77,0.05177389]
[1765250680950,3.14,132.78,132.77,0.05177389]
[1765250681949,6.88216055,132.89,132.77,0.30177389]
[1765250682149,3.14,132.94,132.88,0.25]
[1765250682344,105.2944,132.95,132.88,0.25]
[1765250682345,3.14,132.93,132.88,2.48932377]
[1765250682845,3.14,132.93,132.88,0.25]
[1765250683041,3.19235145,132.92,132.89,0.04998792]
[1765250683442,0.05235145,132.92,132.91,5.56202454]
[1765250683643,3.14,133.01,132.93,0.25]
[1765250684451,3.14,133.01,132.93,7.0194]
[1765250684652,3.19664627,132.98,132.96,0.05153681]
[1765250691153,0.05664627,132.98,132.96,0.05153681]
[1765250691358,0.05664627,132.98,132.96,105.56753681]
[1765250691653,0.05664627,132.98,132.97,0.23]
[1765250691859,3.17,133.04,132.97,0.23]
[1765250691860,3.17,133.04,132.97,6.9975]
[1765250692153,3.17,133.04,132.97,112.2758]
[1765250692759,3.22026218,133.02,132.99,0.04977668]
[1765250693054,3.22026218,133.02,132.99,0.0519805]
[1765250693846,0.05026218,133.02,132.99,105.5444805]
[1765250694953,0.05026218,133.02,133.0,6.766]
[1765250695160,0.05026218,133.02,133.0,112.249]
[1765250695361,0.05026218,133.02,133.01,0.23]
[1765250695861,0.05026218,133.02,133.0,112.249]
[1765250696255,0.05026218,133.02,133.01,0.23]
[1765250697048,3.17,133.08,133.03,6.9944]
[1765250698051,4.06856031,133.1,133.03,6.9944]
[1765250698052,4.06856031,133.1,133.06,0.23]
[1765250698252,0.05348476,133.09,133.07,105.47945885]
[1765250698460,1.16796672,133.1,133.08,0.23]
[1765250699057,1.16796672,133.1,133.09,6.9917]
[1765250700161,3.17,133.16,133.1,0.23]
[1765250700359,3.17,133.16,133.11,6.9906]
[1765250701152,0.0576684,133.15,133.12,0.05481876]
[1765250701347,3.2276684,133.15,133.12,0.05481876]
[1765250705060,3.34,133.14,133.07,6.7626]
[1765250705873,3.34,133.11,133.09,0.04980307]
[1765250706161,0.04754844,133.12,133.09,105.51260307]
[1765250706356,0.04754844,133.12,133.1,105.4553]
[1765250707568,0.04754844,133.12,133.1,112.2162]
[1765250708163,3.34,133.17,133.13,7.0396]
[1765250708767,3.34,133.17,133.11,6.7605]
[1765250709161,3.34,133.14,133.13,0.05332373]
[1765250713664,3.34,133.13,133.06,105.536]
[1765250714061,3.34,133.13,133.09,0.33]
[1765250714572,0.05567968,133.12,133.1,0.05566899]
[1765250714966,0.05567968,133.12,133.1,7.14656899]
[1765250716172,0.05567968,133.12,133.11,0.33]
[1765250717277,0.05567968,133.12,133.11,1.83]
[1765250717573,3.34,133.18,133.12,6.7598]
[1765250717874,3.34,133.18,133.11,105.4948]
[1765250718278,3.34,133.18,133.14,0.33]
[1765250718480,0.05036894,133.16,133.14,0.33]
[1765250718977,0.05036894,133.16,133.15,0.33]
[1765250720780,0.05036894,133.16,133.14,7.0889]
[1765250720983,0.05036894,133.16,133.15,0.33]
[1765250727688,0.05036894,133.16,133.14,6.7589]
[1765250727990,0.05036894,133.16,133.15,0.33]
[1765250730193,0.05036894,133.16,133.14,6.7589]
[1765250730386,0.05036894,133.16,133.14,7.0889]
[1765250731795,0.05036894,133.16,133.15,0.33]
[1765250733090,0.05036894,133.16,133.14,6.7589]
[1765250733289,0.05036894,133.16,133.14,7.0889]
[1765250738505,0.05036894,133.16,133.15,0.33]
[1765250739407,3.22,133.19,133.16,7.0881]
[1765250739604,5.59982785,133.18,133.16,7.0881]
[1765250739810,5.59982785,133.17,133.16,7.0881]
[1765250740695,8.81982785,133.17,133.15,0.0479698]
[1765250740900,3.22,133.17,133.15,0.0479698]
[1765250741505,3.22,133.17,133.15,0.3779698]
[1765250742207,3.26848216,133.18,133.15,0.3779698]
[1765250742514,5.6143148,133.17,133.15,0.3779698]
[1765250742702,3.26848216,133.18,133.15,0.3779698]
[1765250742904,5.6143148,133.17,133.15,0.3779698]
[1765250743104,3.26848216,133.18,133.15,0.3779698]
[1765250743315,5.61732396,133.17,133.15,0.3779698]
[1765250743503,3.26848216,133.18,133.15,0.3779698]
[1765250743705,5.61732396,133.17,133.15,0.3779698]
[1765250743910,3.26848216,133.18,133.15,0.3779698]
[1765250744109,5.61732396,133.17,133.15,0.3779698]
[1765250744310,3.26848216,133.18,133.15,0.0479698]
[1765250744311,8.83766471,133.16,133.15,0.0479698]
[1765250744811,3.22,133.15,133.08,63.86]
[1765250745013,3.22,133.13,133.09,0.38]
[1765250745913,3.22,133.11,133.1,0.04860354]
[1765250746104,8.8301239,133.11,133.09,0.05533711]
[1765250746304,3.22,133.11,133.09,0.05533711]
[1765250749411,0.05369657,133.12,133.09,0.43533711]
[1765250750612,0.05369657,133.12,133.1,7.141]
[1765250750914,3.36369657,133.12,133.09,0.05533711]
[1765250758022,3.31,133.1,133.07,0.38]
[1765250758818,3.31,133.1,133.08,6.7621]
[1765250759021,3.31,133.1,133.08,6.80947587]
[1765250762528,3.31,133.1,133.08,0.04737587]
[1765250763827,3.31,133.1,133.05,63.88]
[1765250764819,3.08,133.08,133.06,0.04842455]
[1765250767324,0.04882581,133.09,133.07,0.43]
[1765250768735,0.04882581,133.09,133.07,7.1925]
[1765250769429,0.04882581,133.09,133.08,0.43]
[1765250769828,0.04882581,133.09,133.07,7.1925]
[1765250772540,3.12882581,133.09,133.06,64.35842455]
[1765250772927,3.12882581,133.09,133.07,0.43]
[1765250773723,3.12882581,133.09,133.06,0.04842455]
[1765250776545,5.35467545,133.09,133.06,0.04842455]
[1765250776732,3.08,133.06,133.02,7.2452]
[1765250777036,3.08,133.06,133.02,6.7652]
[1765250777632,3.08,133.04,133.03,0.05262031]
[1765250779534,0.05597339,133.05,133.03,0.05262031]
[1765250779535,3.22597339,133.05,133.03,0.05262031]
[1765250780941,3.22597339,133.05,133.0,6.7661]
[1765250781138,3.22597339,133.05,132.99,2.22584964]
[1765250781844,3.22597339,133.05,133.01,0.05302509]
[1765250782542,9.99007339,133.05,133.01,0.05302509]
[1765250782742,3.17,133.04,133.01,0.05302509]
[1765250783137,12.16044964,133.04,133.01,0.05302509]
[1765250783343,3.17,133.03,132.97,2.22584964]
[1765250783735,3.17,133.03,132.96,64.44]
[1765250783939,3.17,133.03,132.97,2.22584964]
[1765250784337,3.22683739,133.01,132.99,0.05603842]
[1765250787546,0.05683739,133.01,132.99,2.82188806]
[1765250788331,3.22683739,133.01,132.99,2.28188806]
[1765250788546,3.22683739,133.01,132.99,9.04838806]
[1765250793745,3.22683739,133.01,132.99,2.28188806]
[1765250802359,3.22683739,133.01,132.99,0.05603842]
[1765250803846,3.17,132.99,132.95,2.22584964]
[1765250804449,3.17,132.99,132.96,0.6]
[1765250804755,3.22202745,132.99,132.96,0.05555213]
[1765250805855,3.17,132.98,132.96,0.05555213]
[1765250807359,3.17,132.97,132.96,0.05555213]
[1765250807951,3.17,132.98,132.96,0.05555213]
[1765250815261,3.38,132.97,132.93,6.7695]
[1765250816152,3.38,132.97,132.93,7.4195]
[1765250816358,3.43651389,132.96,132.94,0.69893402]
[1765250816557,3.42774882,132.96,132.94,0.04893402]
[1765250823952,3.28,132.95,132.91,6.7706]
[1765250825160,3.28,132.95,132.92,0.05771794]
[1765250827565,3.28,132.93,132.92,0.05771794]
[1765250827772,3.28,132.92,132.87,0.65]
[1765250828069,3.28,132.91,132.87,0.65]
[1765250828666,0.04916512,132.9,132.89,0.71]
[1765250828973,0.05489682,132.91,132.89,0.71]
[1765250830865,3.33489682,132.91,132.89,0.71]
[1765250831869,3.33489682,132.91,132.88,6.7721]
[1765250832070,3.33489682,132.91,132.89,0.71]
[1765250833878,3.33489682,132.91,132.88,0.71]
[1765250834267,3.33489682,132.91,132.87,8.99854964]
[1765250834771,3.33489682,132.91,132.87,6.7727]
[1765250834976,3.33489682,132.91,132.87,7.4827]
[1765250835871,3.33489682,132.91,132.85,6.7737]
[1765250836178,3.33489682,132.91,132.85,126.4837]
[1765250836583,3.33489682,132.91,132.88,0.71]
[1765250839182,3.33489682,132.91,132.87,6.7728]
[1765250839481,3.33489682,132.91,132.87,7.4828]
[1765250840578,0.05489682,132.91,132.89,0.71]
[1765250841384,3.36489682,132.91,132.89,0.71]
[1765250841679,3.36489682,132.91,132.89,7.4818]
[1765250842882,3.36489682,132.91,132.89,6.7718]
[1765250843568,3.36489682,132.91,132.87,7.4826]
[1765250844982,8.64538421,132.96,132.92,0.71]
[1765250845281,3.31,132.96,132.92,0.71]
[1765250846078,0.04792665,132.95,132.93,0.76203743]
[1765250846690,3.35792665,132.95,132.93,6.82163743]
[1765250848583,3.35792665,132.95,132.93,7.53163743]
[1765250855675,3.35792665,132.95,132.93,0.05203743]
[1765250859998,3.35792665,132.95,132.93,0.76203743]
[1765250860700,3.35792665,132.95,132.93,0.05203743]
[1765250864900,3.35792665,132.95,132.94,0.71]
[1765250864901,0.04792665,132.95,132.94,0.71]
[1765250865105,3.35792665,132.95,132.93,6.82173743]
[1765250865298,3.35792665,132.95,132.93,7.53173743]
[1765250870211,3.35792665,132.95,132.93,0.05203743]
[1765250874305,3.35792665,132.95,132.93,0.75203743]
[1765250874721,3.35792665,132.95,132.93,7.52173743]
[1765250877113,0.04792665,132.95,132.94,0.7]
[1765250886216,8.65969773,133.0,132.97,0.71]
[1765250886420,5.69254339,132.99,132.97,0.71]
[1765250886629,3.24,133.0,132.97,0.71]
[1765250886831,5.69179851,132.99,132.97,0.71]
[1765250887021,3.24,133.0,132.97,0.71]
[1765250887224,8.98549883,132.99,132.97,0.76516152]
[1765250887527,8.98549883,132.99,132.97,7.53286152]
[1765250887528,3.29370288,132.99,132.97,7.53286152]
[1765250889124,3.29370288,132.99,132.97,0.05516152]
[1765250889326,8.93634197,132.98,132.97,0.05516152]
[1765250890535,3.24,132.97,132.92,0.71]